[Event "British Rapidplay Championship 2023"]
[Site "Mercure Bradford, Bankfield Hotel"]
[Date "2023.04.15"]
[Round "2.17"]
[White "Zhao, George"]
[Black "Cook, Phil"]
[Result "0-1"]
[TimeControl "15 minutes plus 10 seconds per move"]
[WhiteElo "1675"]
[BlackElo "2126"]

1. d4 {[%clk 00:15:18]} {[%emt 00:00:02]} Nf6 {[%clk 00:15:17]} {[%emt
00:00:04]} 2. Nf3 {[%clk 00:15:24]} {[%emt 00:00:04]} g6 {[%clk 00:15:24]}
{[%emt 00:00:02]} 3. g3 {[%clk 00:15:31]} {[%emt 00:00:03]} Bg7 {[%clk
00:15:32]} {[%emt 00:00:02]} 4. Bg2 {[%clk 00:15:35]} {[%emt 00:00:06]} O-O
{[%clk 00:15:39]} {[%emt 00:00:04]} 5. O-O {[%clk 00:15:41]} {[%emt 00:00:03]}
d6 {[%clk 00:15:46]} {[%emt 00:00:02]} 6. c4 {[%clk 00:15:48]} {[%emt
00:00:04]} c6 {[%clk 00:15:51]} {[%emt 00:00:05]} 7. Nc3 {[%clk 00:15:52]}
{[%emt 00:00:06]} Bf5 {[%clk 00:15:55]} {[%emt 00:00:06]} 8. Re1 {[%clk
00:15:42]} {[%emt 00:00:21]} Ne4 {[%clk 00:15:59]} {[%emt 00:00:06]} 9. Nh4
{[%clk 00:14:32]} {[%emt 00:01:19]} Nxc3 {[%clk 00:15:50]} {[%emt 00:00:19]} 10.
bxc3 {[%clk 00:14:36]} {[%emt 00:00:07]} Be6 {[%clk 00:15:04]} {[%emt
00:00:56]} 11. Qd3 {[%clk 00:14:18]} {[%emt 00:00:28]} Qa5 {[%clk 00:14:09]}
{[%emt 00:01:05]} 12. e4 {[%clk 00:12:57]} {[%emt 00:01:30]} Na6 {[%clk
00:13:11]} {[%emt 00:01:08]} 13. Bd2 {[%clk 00:12:42]} {[%emt 00:00:26]} Qa4
{[%clk 00:12:23]} {[%emt 00:00:58]} 14. Bf1 {[%clk 00:12:08]} {[%emt 00:00:44]}
Rfe8 {[%clk 00:09:12]} {[%emt 00:03:20]} 15. d5 {[%clk 00:10:04]} {[%emt
00:02:15]} Nc5 {[%clk 00:08:58]} {[%emt 00:00:24]} 16. Qe2 {[%clk 00:09:13]}
{[%emt 00:01:01]} Bd7 {[%clk 00:09:04]} {[%emt 00:00:03]} 17. Qd1 {[%clk
00:08:01]} {[%emt 00:01:22]} Rac8 {[%clk 00:08:51]} {[%emt 00:00:24]} 18. Qxa4
{[%clk 00:07:24]} {[%emt 00:00:48]} Nxa4 {[%clk 00:08:59]} {[%emt 00:00:02]} 19.
Rab1 {[%clk 00:07:17]} {[%emt 00:00:17]} b6 {[%clk 00:08:31]} {[%emt 00:00:37]}
20. Rb3 {[%clk 00:06:43]} {[%emt 00:00:45]} cxd5 {[%clk 00:08:24]} {[%emt
00:00:17]} 21. exd5 {[%clk 00:06:38]} {[%emt 00:00:15]} Rc5 {[%clk 00:07:46]}
{[%emt 00:00:47]} 22. Be3 {[%clk 00:05:50]} {[%emt 00:00:58]} Ra5 {[%clk
00:07:28]} {[%emt 00:00:28]} 23. Bd4 {[%clk 00:05:36]} {[%emt 00:00:25]} Nc5
{[%clk 00:07:19]} {[%emt 00:00:19]} 24. Rb2 {[%clk 00:05:02]} {[%emt 00:00:44]}
Ra3 {[%clk 00:06:37]} {[%emt 00:00:51]} 25. Re3 {[%clk 00:04:22]} {[%emt
00:00:51]} Bh6 {[%clk 00:06:07]} {[%emt 00:00:40]} 26. Re1 {[%clk 00:04:05]}
{[%emt 00:00:28]} e5 {[%clk 00:05:50]} {[%emt 00:00:26]} 27. Bxc5 {[%clk
00:03:30]} {[%emt 00:00:45]} dxc5 {[%clk 00:05:57]} {[%emt 00:00:04]} 28. Rbe2
{[%clk 00:02:55]} {[%emt 00:00:45]} Rxc3 {[%clk 00:04:14]} {[%emt 00:01:53]} 29.
Rxe5 {[%clk 00:02:59]} {[%emt 00:00:05]} Rxe5 {[%clk 00:04:22]} {[%emt
00:00:02]} 30. Rxe5 {[%clk 00:03:04]} {[%emt 00:00:05]} Kf8 {[%clk 00:04:16]}
{[%emt 00:00:16]} 31. d6 {[%clk 00:02:33]} {[%emt 00:00:42]} Be6 {[%clk
00:03:27]} {[%emt 00:00:59]} 32. Kg2 {[%clk 00:01:40]} {[%emt 00:01:03]} Rc1
{[%clk 00:03:27]} {[%emt 00:00:10]} 33. Be2 {[%clk 00:00:53]} {[%emt 00:00:57]}
Ke8 {[%clk 00:02:53]} {[%emt 00:00:43]} 34. f4 {[%clk 00:00:30]} {[%emt
00:00:33]} Kd7 {[%clk 00:03:00]} {[%emt 00:00:04]} 35. f5 {[%clk 00:00:34]}
{[%emt 00:00:07]} gxf5 {[%clk 00:03:00]} {[%emt 00:00:09]} 36. Nxf5 {[%clk
00:00:42]} {[%emt 00:00:02]} Bf8 {[%clk 00:02:39]} {[%emt 00:00:31]} 37. Bg4
{[%clk 00:00:26]} {[%emt 00:00:26]} Bxd6 {[%clk 00:02:32]} {[%emt 00:00:18]} 38.
Nxd6 {[%clk 00:00:21]} {[%emt 00:00:14]} Kxd6 {[%clk 00:02:41]} {[%emt
00:00:01]} 39. Rg5 {[%clk 00:00:18]} {[%emt 00:00:13]} Rxc4 {[%clk 00:02:23]}
{[%emt 00:00:28]} 40. Bxe6 {[%clk 00:00:23]} {[%emt 00:00:05]} Kxe6 {[%clk
00:02:31]} {[%emt 00:00:02]} 41. Rh5 {[%clk 00:00:22]} {[%emt 00:00:11]} Rc2+
{[%clk 00:02:39]} {[%emt 00:00:02]} 42. Kh3 {[%clk 00:00:31]} {[%emt 00:00:01]}
Rxa2 {[%clk 00:02:47]} {[%emt 00:00:02]} 43. Rxh7 {[%clk 00:00:38]} {[%emt
00:00:03]} c4 {[%clk 00:02:53]} {[%emt 00:00:04]} 44. Rh6+ {[%clk 00:00:47]}
{[%emt 00:00:01]} Kd7 {[%clk 00:02:54]} {[%emt 00:00:09]} 45. Rf6 {[%clk
00:00:44]} {[%emt 00:00:13]} Ke7 {[%clk 00:03:00]} {[%emt 00:00:04]} 46. Rc6
{[%clk 00:00:53]} {[%emt 00:00:01]} b5 {[%clk 00:03:02]} {[%emt 00:00:07]} 47.
Rc7+ {[%clk 00:00:40]} {[%emt 00:00:23]} Ke6 {[%clk 00:03:09]} {[%emt
00:00:03]} 48. Rc6+ {[%clk 00:00:48]} {[%emt 00:00:03]} Kd5 {[%clk 00:03:10]}
{[%emt 00:00:09]} 49. Rf6 {[%clk 00:00:56]} {[%emt 00:00:01]} c3 {[%clk
00:03:14]} {[%emt 00:00:07]} 50. Rxf7 {[%clk 00:01:05]} c2 {[%clk 00:03:21]}
{[%emt 00:00:03]} 51. Rc7 {[%clk 00:01:14]} {[%emt 00:00:01]} b4 {[%clk
00:03:27]} {[%emt 00:00:05]} 52. g4 {[%clk 00:01:23]} b3 {[%clk 00:03:34]}
{[%emt 00:00:03]} 53. g5 {[%clk 00:01:13]} {[%emt 00:00:20]} Ra6 {[%clk
00:03:41]} {[%emt 00:00:02]} 54. Rc3 {[%clk 00:00:56]} {[%emt 00:00:28]} Rc6
{[%clk 00:03:46]} {[%emt 00:00:05]} 55. Rxb3 {[%clk 00:00:16]} {[%emt
00:00:50]} c1=Q {[%clk 00:03:53]} {[%emt 00:00:02]} 56. Rd3+ {[%clk 00:00:25]}
{[%emt 00:00:02]} Ke4 {[%clk 00:03:59]} {[%emt 00:00:03]} 57. Rg3 {[%clk
00:00:32]} {[%emt 00:00:03]} Qf1+ {[%clk 00:03:48]} {[%emt 00:00:21]} 58. Kh4
{[%clk 00:00:41]} {[%emt 00:00:02]} Kf4 {[%clk 00:03:45]} {[%emt 00:00:13]} 59.
Rg4+ {[%clk 00:00:21]} {[%emt 00:00:30]} Kf5 {[%clk 00:03:53]} {[%emt
00:00:02]} 60. Rg3 {[%clk 00:00:24]} {[%emt 00:00:07]} Rc8 {[%clk 00:03:49]}
{[%emt 00:00:14]} 61. Rf3+ {[%clk 00:00:25]} {[%emt 00:00:09]} Qxf3 {[%clk
00:03:55]} {[%emt 00:00:04]} 62. g6 {[%clk 00:00:34]} {[%emt 00:00:01]} Rh8+
{[%clk 00:03:44]} {[%emt 00:00:05]} 0-1

[Event "British Rapidplay Championship 2023"]
[Site "Mercure Bradford, Bankfield Hotel"]
[Date "2023.04.15"]
[Round "2.18"]
[White "Smith, Andrew P"]
[Black "Cuaresma, Gerald"]
[Result "1-0"]
[TimeControl "15 minutes plus 10 seconds per move"]
[WhiteElo "2125"]
[BlackElo "1741"]

1. e4 {[%clk 00:15:17]} {[%emt 00:00:03]} c5 {[%clk 00:15:19]} {[%emt
00:00:02]} 2. Nf3 {[%clk 00:15:20]} {[%emt 00:00:06]} Nc6 {[%clk 00:15:27]}
{[%emt 00:00:02]} 3. d4 {[%clk 00:15:16]} {[%emt 00:00:14]} cxd4 {[%clk
00:15:35]} {[%emt 00:00:02]} 4. Nxd4 {[%clk 00:15:21]} {[%emt 00:00:05]} e5
{[%clk 00:15:43]} {[%emt 00:00:02]} 5. Nb3 {[%clk 00:14:22]} {[%emt 00:01:25]}
Nf6 {[%clk 00:15:50]} 6. Nc3 {[%clk 00:14:26]} Bb4 {[%clk 00:15:58]} 7. Bc4
{[%clk 00:13:56]} {[%emt 00:00:34]} O-O {[%clk 00:15:54]} {[%emt 00:00:14]} 8.
O-O {[%clk 00:13:45]} {[%emt 00:00:21]} d6 {[%clk 00:15:35]} {[%emt 00:00:29]}
9. Qe2 {[%clk 00:13:09]} {[%emt 00:00:45]} Bg4 {[%clk 00:14:40]} {[%emt
00:01:05]} 10. f3 {[%clk 00:12:48]} {[%emt 00:00:31]} Be6 {[%clk 00:14:49]}
{[%emt 00:00:02]} 11. Bg5 {[%clk 00:12:25]} {[%emt 00:00:33]} Qb6+ {[%clk
00:14:02]} {[%emt 00:00:57]} 12. Kh1 {[%clk 00:12:22]} {[%emt 00:00:12]} Bxc3
{[%clk 00:13:50]} {[%emt 00:00:24]} 13. bxc3 {[%clk 00:11:53]} {[%emt
00:00:38]} Nd7 {[%clk 00:13:01]} {[%emt 00:00:58]} 14. Rad1 {[%clk 00:11:27]}
{[%emt 00:00:37]} Qc7 {[%clk 00:13:01]} {[%emt 00:00:10]} 15. Bxe6 {[%clk
00:10:11]} {[%emt 00:01:26]} fxe6 {[%clk 00:13:09]} {[%emt 00:00:02]} 16. Qd3
{[%clk 00:07:18]} {[%emt 00:03:02]} d5 {[%clk 00:11:15]} {[%emt 00:02:04]} 17.
exd5 {[%clk 00:07:24]} {[%emt 00:00:04]} exd5 {[%clk 00:11:23]} {[%emt
00:00:02]} 18. Qxd5+ {[%clk 00:07:28]} {[%emt 00:00:07]} Rf7 {[%clk 00:11:30]}
{[%emt 00:00:02]} 19. c4 {[%clk 00:06:04]} {[%emt 00:01:34]} Nb4 {[%clk
00:11:00]} {[%emt 00:00:41]} 20. Qb5 {[%clk 00:04:42]} {[%emt 00:01:32]} Nxa2
{[%clk 00:10:02]} {[%emt 00:01:08]} 21. Bd2 {[%clk 00:04:39]} {[%emt 00:00:13]}
a5 {[%clk 00:07:14]} {[%emt 00:02:59]} 22. Ra1 {[%clk 00:04:32]} {[%emt
00:00:17]} a4 {[%clk 00:04:49]} {[%emt 00:02:35]} 23. Rxa2 {[%clk 00:04:37]}
{[%emt 00:00:05]} 1-0

[Event "British Rapidplay Championship 2023"]
[Site "Mercure Bradford, Bankfield Hotel"]
[Date "2023.04.15"]
[Round "2.19"]
[White "Bramson, Mike"]
[Black "Bak, Christopher"]
[Result "1/2-1/2"]
[TimeControl "15 minutes plus 10 seconds per move"]
[WhiteElo "1864"]
[BlackElo "2116"]

1. e4 {[%clk 00:15:17]} {[%emt 00:00:04]} e6 {[%clk 00:15:18]} 2. d4 {[%clk
00:15:25]} {[%emt 00:00:03]} d5 {[%clk 00:15:26]} {[%emt 00:00:03]} 3. Nd2
{[%clk 00:15:27]} {[%emt 00:00:08]} Nf6 {[%clk 00:15:33]} {[%emt 00:00:02]} 4.
e5 {[%clk 00:15:34]} {[%emt 00:00:03]} Nfd7 {[%clk 00:15:41]} {[%emt 00:00:02]}
5. Ngf3 {[%clk 00:15:42]} {[%emt 00:00:02]} c5 {[%clk 00:15:47]} {[%emt
00:00:05]} 6. c3 {[%clk 00:15:49]} {[%emt 00:00:02]} Nc6 {[%clk 00:15:52]}
{[%emt 00:00:05]} 7. Bd3 {[%clk 00:15:57]} {[%emt 00:00:02]} g6 {[%clk
00:15:41]} {[%emt 00:00:22]} 8. O-O {[%clk 00:15:54]} {[%emt 00:00:12]} Bg7
{[%clk 00:15:49]} {[%emt 00:00:03]} 9. Re1 {[%clk 00:15:59]} {[%emt 00:00:05]}
O-O {[%clk 00:15:55]} {[%emt 00:00:03]} 10. Nf1 {[%clk 00:16:05]} {[%emt
00:00:42]} cxd4 {[%clk 00:15:50]} 11. cxd4 {[%clk 00:16:13]} Qb6 {[%clk
00:15:27]} {[%emt 00:00:13]} 12. Be3 {[%clk 00:16:06]} {[%emt 00:00:16]} f6
{[%clk 00:15:19]} {[%emt 00:00:18]} 13. Qd2 {[%clk 00:16:01]} {[%emt 00:00:15]}
Qa5 {[%clk 00:13:51]} {[%emt 00:01:38]} 14. Qxa5 {[%clk 00:14:17]} {[%emt
00:01:55]} Nxa5 {[%clk 00:13:58]} {[%emt 00:00:02]} 15. exf6 {[%clk 00:14:00]}
{[%emt 00:00:27]} Nxf6 {[%clk 00:11:41]} {[%emt 00:02:28]} 16. Ne5 {[%clk
00:13:51]} {[%emt 00:00:19]} Nd7 {[%emt 00:01:20]} 17. f4 {[%clk 00:13:51]}
Nxe5 {[%clk 00:09:12]} {[%emt 00:01:39]} 18. fxe5 {[%clk 00:13:57]} {[%emt
00:00:03]} Bd7 {[%clk 00:09:04]} {[%emt 00:00:19]} 19. Nd2 {[%clk 00:13:38]}
{[%emt 00:00:29]} Rac8 {[%clk 00:09:10]} {[%emt 00:00:04]} 20. Rac1 {[%clk
00:13:43]} {[%emt 00:00:05]} Nc6 {[%clk 00:08:45]} {[%emt 00:00:34]} 21. a3
{[%clk 00:13:30]} {[%emt 00:00:24]} Ne7 {[%clk 00:08:15]} {[%emt 00:00:40]} 22.
Nf3 {[%clk 00:13:27]} {[%emt 00:00:13]} Rc6 {[%clk 00:07:46]} {[%emt 00:00:39]}
23. Rxc6 {[%clk 00:12:37]} {[%emt 00:01:01]} Nxc6 {[%clk 00:07:05]} {[%emt
00:00:50]} 24. b4 {[%clk 00:12:14]} {[%emt 00:00:34]} Ne7 {[%clk 00:06:55]}
{[%emt 00:00:19]} 25. Rc1 {[%clk 00:11:46]} {[%emt 00:00:37]} Rc8 {[%clk
00:07:03]} {[%emt 00:00:02]} 26. Rxc8+ {[%clk 00:11:08]} {[%emt 00:00:49]} Nxc8
{[%clk 00:07:11]} {[%emt 00:00:03]} 27. Nd2 {[%clk 00:11:00]} {[%emt 00:00:17]}
Ba4 {[%clk 00:06:03]} {[%emt 00:01:18]} 28. Nb1 {[%clk 00:10:47]} {[%emt
00:00:22]} Bf8 {[%clk 00:05:51]} {[%emt 00:00:22]} 29. Nc3 {[%clk 00:10:52]}
{[%emt 00:00:06]} Be8 {[%clk 00:05:29]} {[%emt 00:00:32]} 30. Bc1 {[%clk
00:09:56]} {[%emt 00:01:05]} Kg7 {[%clk 00:05:20]} {[%emt 00:00:20]} 31. Be2
{[%clk 00:09:49]} {[%emt 00:00:17]} Be7 {[%clk 00:05:12]} {[%emt 00:00:18]} 32.
Bg4 {[%clk 00:09:49]} {[%emt 00:00:10]} Bf7 {[%clk 00:05:09]} {[%emt 00:00:13]}
33. Nxd5 {[%clk 00:09:54]} {[%emt 00:00:05]} exd5 {[%clk 00:03:49]} {[%emt
00:01:30]} 34. Bxc8 {[%clk 00:10:02]} {[%emt 00:00:02]} b6 {[%clk 00:03:39]}
{[%emt 00:00:20]} 35. Kf1 {[%clk 00:09:29]} {[%emt 00:00:43]} g5 {[%clk
00:03:38]} {[%emt 00:00:10]} 36. g4 {[%clk 00:09:24]} {[%emt 00:00:15]} Be8
{[%clk 00:03:16]} {[%emt 00:00:33]} 37. Bb7 {[%clk 00:08:49]} {[%emt 00:00:45]}
Bb5+ {[%clk 00:03:19]} {[%emt 00:00:07]} 38. Kf2 {[%clk 00:08:57]} {[%emt
00:00:02]} Bc4 {[%clk 00:03:27]} {[%emt 00:00:02]} 39. Ke3 {[%clk 00:08:50]}
{[%emt 00:00:16]} h6 {[%clk 00:03:35]} {[%emt 00:00:03]} 40. Bc8 {[%clk
00:08:57]} {[%emt 00:00:03]} Kf7 {[%clk 00:03:40]} {[%emt 00:00:05]} 41. Bf5
{[%clk 00:09:04]} {[%emt 00:00:03]} Bb5 {[%clk 00:03:25]} {[%emt 00:00:24]} 42.
Kf3 {[%clk 00:08:56]} {[%emt 00:00:18]} Bc4 {[%clk 00:03:20]} {[%emt 00:00:16]}
43. h4 {[%clk 00:08:53]} {[%emt 00:00:13]} Bb5 {[%clk 00:01:54]} {[%emt
00:01:36]} 44. Bd2 {[%clk 00:08:53]} {[%emt 00:00:10]} Bc4 {[%clk 00:01:47]}
{[%emt 00:00:17]} 45. hxg5 {[%clk 00:08:41]} {[%emt 00:00:21]} Bxg5 {[%clk
00:01:31]} {[%emt 00:00:27]} 46. Bf4 {[%clk 00:08:27]} {[%emt 00:00:24]} Ke7
{[%clk 00:01:26]} {[%emt 00:00:15]} 47. Bxg5+ {[%clk 00:07:20]} {[%emt
00:01:17]} hxg5 {[%clk 00:01:34]} {[%emt 00:00:02]} 48. Ke3 {[%clk 00:07:26]}
{[%emt 00:00:04]} Kf7 {[%clk 00:01:38]} {[%emt 00:00:06]} 49. Kd2 {[%clk
00:07:31]} {[%emt 00:00:05]} Ke7 {[%clk 00:01:44]} {[%emt 00:00:04]} 50. Kc3
{[%clk 00:07:39]} {[%emt 00:00:01]} Be2 {[%clk 00:01:24]} {[%emt 00:00:31]} 51.
Kd2 {[%clk 00:07:25]} {[%emt 00:00:24]} Bb5 {[%clk 00:01:22]} {[%emt 00:00:11]}
52. Kc3 {[%clk 00:07:26]} {[%emt 00:00:10]} Be2 {[%clk 00:01:30]} {[%emt
00:00:02]} 53. a4 {[%clk 00:07:25]} {[%emt 00:00:11]} Bd1 {[%clk 00:01:20]}
{[%emt 00:00:20]} 54. a5 {[%clk 00:07:11]} {[%emt 00:00:25]} Be2 {[%clk
00:01:19]} {[%emt 00:00:11]} 55. Kd2 {[%clk 00:07:10]} {[%emt 00:00:11]} Bb5
{[%clk 00:01:23]} {[%emt 00:00:05]} 56. Bd3 {[%clk 00:07:17]} {[%emt 00:00:03]}
Bd7 {[%clk 00:01:30]} {[%emt 00:00:03]} 57. Be2 {[%clk 00:07:24]} {[%emt
00:00:02]} Kd8 {[%clk 00:01:17]} {[%emt 00:00:24]} 58. Kc3 {[%clk 00:07:30]}
{[%emt 00:00:04]} Kc7 {[%clk 00:01:22]} {[%emt 00:00:05]} 59. Bf3 {[%clk
00:06:59]} {[%emt 00:00:40]} Be6 {[%clk 00:01:23]} {[%emt 00:00:10]} 60. Kb3
{[%clk 00:06:57]} {[%emt 00:00:12]} Kc6 {[%clk 00:01:19]} {[%emt 00:00:14]} 61.
Ka4 {[%clk 00:06:58]} {[%emt 00:00:09]} b5+ {[%clk 00:01:18]} {[%emt 00:00:10]}
62. Kb3 {[%clk 00:07:03]} {[%emt 00:00:06]} a6 {[%clk 00:01:22]} {[%emt
00:00:06]} 1/2-1/2

[Event "British Rapidplay Championship 2023"]
[Site "Mercure Bradford, Bankfield Hotel"]
[Date "2023.04.15"]
[Round "2.20"]
[White "Surtees, Mike J"]
[Black "Fava, Lorenzo"]
[Result "1-0"]
[TimeControl "15 minutes plus 10 seconds per move"]
[WhiteElo "2111"]
[BlackElo "1728"]

1. e4 {[%clk 00:15:19]} c6 {[%clk 00:15:19]} {[%emt 00:00:03]} 2. Ne2 {[%clk
00:15:26]} {[%emt 00:00:02]} d5 {[%clk 00:15:28]} {[%emt 00:00:02]} 3. e5
{[%clk 00:15:34]} {[%emt 00:00:01]} c5 {[%clk 00:15:32]} {[%emt 00:00:06]} 4.
b4 {[%clk 00:15:42]} {[%emt 00:00:02]} cxb4 {[%clk 00:15:12]} {[%emt 00:00:30]}
5. a3 {[%clk 00:15:48]} {[%emt 00:01:23]} Nc6 {[%clk 00:13:40]} {[%emt
00:00:23]} 6. d4 {[%clk 00:15:49]} {[%emt 00:00:09]} e6 {[%clk 00:11:42]}
{[%emt 00:02:08]} 7. axb4 {[%clk 00:15:54]} {[%emt 00:00:05]} Bxb4+ {[%clk
00:11:47]} {[%emt 00:00:06]} 8. c3 {[%clk 00:16:02]} {[%emt 00:00:01]} Be7
{[%clk 00:10:51]} {[%emt 00:01:06]} 9. Nf4 {[%clk 00:15:57]} {[%emt 00:00:15]}
Bd7 {[%clk 00:09:36]} {[%emt 00:01:26]} 10. Bd3 {[%clk 00:15:42]} {[%emt
00:00:24]} Qc7 {[%clk 00:08:26]} {[%emt 00:01:20]} 11. O-O {[%clk 00:15:33]}
{[%emt 00:00:18]} Na5 {[%clk 00:06:05]} {[%emt 00:02:32]} 12. Re1 {[%clk
00:14:52]} {[%emt 00:00:50]} Nc4 {[%clk 00:05:27]} {[%emt 00:00:48]} 13. Bxc4
{[%clk 00:13:14]} {[%emt 00:01:48]} Qxc4 {[%clk 00:05:31]} {[%emt 00:00:07]} 14.
Qf3 {[%clk 00:12:36]} {[%emt 00:00:48]} a5 {[%clk 00:03:18]} {[%emt 00:02:23]}
15. Na3 {[%clk 00:08:54]} {[%emt 00:03:52]} Qc6 {[%clk 00:02:59]} {[%emt
00:00:29]} 16. Rb1 {[%clk 00:07:25]} {[%emt 00:01:38]} Nh6 {[%clk 00:02:51]}
{[%emt 00:00:18]} 17. g4 {[%clk 00:04:47]} {[%emt 00:02:48]} b5 {[%clk
00:02:38]} {[%emt 00:00:24]} 18. Nh5 {[%clk 00:03:38]} {[%emt 00:01:18]} b4
{[%clk 00:01:50]} {[%emt 00:00:59]} 19. Nxg7+ {[%clk 00:03:21]} {[%emt
00:00:27]} Kd8 {[%clk 00:01:59]} {[%emt 00:00:01]} 20. Bxh6 {[%clk 00:03:21]}
{[%emt 00:00:09]} bxa3 {[%clk 00:02:07]} {[%emt 00:00:03]} 21. Nh5 {[%clk
00:02:05]} {[%emt 00:01:25]} Rg8 {[%clk 00:01:10]} {[%emt 00:01:09]} 22. h3
{[%clk 00:02:06]} {[%emt 00:00:08]} Kc7 {[%clk 00:01:13]} {[%emt 00:00:08]} 23.
Nf6 {[%clk 00:01:35]} {[%emt 00:00:40]} Rg6 {[%clk 00:01:01]} {[%emt 00:00:22]}
24. Bd2 {[%clk 00:01:41]} {[%emt 00:00:04]} a2 {[%clk 00:00:31]} {[%emt
00:00:40]} 25. Ra1 {[%clk 00:01:50]} {[%emt 00:00:01]} Qc4 {[%clk 00:00:35]}
{[%emt 00:00:06]} 26. Kh2 {[%clk 00:01:02]} {[%emt 00:00:57]} Rb8 {[%clk
00:00:34]} {[%emt 00:00:12]} 27. h4 {[%clk 00:00:59]} {[%emt 00:00:12]} Rxf6
{[%clk 00:00:14]} {[%emt 00:00:31]} 28. exf6 {[%clk 00:01:05]} {[%emt
00:00:03]} Ba3 {[%clk 00:00:23]} {[%emt 00:00:02]} 29. Bf4+ {[%clk 00:01:08]}
{[%emt 00:00:07]} Kc6 {[%clk 00:00:28]} {[%emt 00:00:05]} 30. Bxb8 {[%clk
00:01:13]} {[%emt 00:00:04]} Bb2 {[%clk 00:00:28]} {[%emt 00:00:10]} 31. Qf4
{[%clk 00:01:13]} {[%emt 00:00:10]} Kb7 {[%clk 00:00:12]} {[%emt 00:00:27]} 32.
Qc7+ {[%clk 00:00:50]} {[%emt 00:00:32]} Qxc7+ {[%clk 00:00:21]} {[%emt
00:00:02]} 33. Bxc7 {[%clk 00:00:58]} {[%emt 00:00:02]} Bxa1 {[%clk 00:00:29]}
{[%emt 00:00:02]} 34. Rxa1 {[%clk 00:01:06]} {[%emt 00:00:02]} Kxc7 {[%clk
00:00:38]} {[%emt 00:00:01]} 35. Rxa2 {[%clk 00:01:14]} {[%emt 00:00:02]} a4
{[%clk 00:00:47]} {[%emt 00:00:01]} 36. g5 {[%clk 00:01:17]} {[%emt 00:00:06]}
Kb6 {[%clk 00:00:45]} {[%emt 00:00:12]} 37. h5 {[%clk 00:01:20]} {[%emt
00:00:08]} Be8 {[%clk 00:00:46]} {[%emt 00:00:10]} 38. Rxa4 {[%clk 00:00:52]}
{[%emt 00:00:38]} Bxa4 {[%clk 00:00:12]} {[%emt 00:00:44]} 39. g6 {[%clk
00:01:00]} {[%emt 00:00:01]} 1-0